Cogmind - Beta 16 @@@ ROGUE MODE // 2026.01.23 @ 16:44:10 Player: luckinvolved Result: Destroyed by IS-F4L(R) with Subdweller Machine Gun Performance ------------- Evolutions (0) 0 Regions Visited (2) 400 Robots Destroyed (47) 235 Value Destroyed (1057) 1057 Prototype IDs (13) 260 Alien Tech Used (0) 0 Bonus (18) 18 TOTAL SCORE: 1970 Bonus ------- High Alert Combat Kills 18 Cogmind --------- Core Integrity 0/250 Matter 282/300 Energy 200/200 System Corruption 0% Temperature Cool (0) Movement Rolling (95) Location -10/Subcaves Parts ------- > --- POWER (1) -------- Subdweller Power Source > --- PROPULSION (2) --- Wheel Subdweller Monowheel > --- UTILITY (2) ------ Gun Armor > --- WEAPON (2+2) ----- Subdweller Machine Gun (+) Improved Assault Rifle (+) Improved Assault Rifle Grenade Launcher > --- INVENTORY (5) ---- Flightbrick Subdweller Optics Peak State ------------ > --- POWER ------------ Subdweller Power Source > --- PROPULSION ------- Wheel Subdweller Monowheel > --- UTILITY ---------- Gun Armor > --- WEAPON ----------- Subdweller Machine Gun Improved Assault Rifle Improved Assault Rifle Grenade Launcher > --- INVENTORY -------- Flightbrick Subdweller Optics [Rating: 26] Favorites ----------- Power Light Ion Engine Engine Light Ion Engine Propulsion Light Treads Treads Light Treads Wheel Wheel Utility Targeting Computer Storage Medium Storage Unit Processor Targeting Computer Protection Scrap Shield Weapon Improved Assault Rifle Energy Gun Small Laser Energy Cannon Beam Cannon Ballistic Gun Improved Assault Rifle Ballistic Cannon Improved Light Cannon Launcher Grenade Launcher Build | -11 -10 -10 ------- Run | Yrd Mat Sub Slots Evolved . | . . . Power . | . . . Propulsion . | . . . Utility . | . . . Weapon . | . . . Parts Attached 35 | 6 14 15 Power 5 | 1 2 2 Engine 5 | 1 2 2 Core . | . . . Reactor . | . . . Propulsion 7 | 2 . 5 Treads 2 | 2 . . Leg . | . . . Wheel 5 | . . 5 Hover . | . . . Flight . | . . . Utility 5 | 1 2 2 Device . | . . . Storage 2 | 1 1 . Processor 1 | . 1 . Hackware . | . . . Protection 2 | . . 2 Artifact . | . . . Weapon 18 | 2 10 6 Energy Gun 2 | 1 1 . Energy Cannon 2 | . 2 . Ballistic Gun 7 | 1 2 4 Ballistic Cannon 3 | . 2 1 Launcher 4 | . 3 1 Special Weapon . | . . . Impact Weapon . | . . . Slashing Weapon . | . . . Piercing Weapon . | . . . Special Melee Weapon . | . . . Unidentified Prototypes 1 | . 1 . Parts Lost 3 | . 1 2 Power 2 | . 1 1 Propulsion 1 | . . 1 Utility . | . . . Weapon . | . . . Highest Loss Streak 1 | . 1 1 To Critical Strikes . | . . . Average Backups 7 | 2 9 5 Power . | . . . Propulsion 1 | 1 2 . Utility . | . . . Weapon 4 | . 6 3 Tool/Special . | . . . Unused Backups 5 | . 2 3 Power . | . . . Propulsion 1 | . . 1 Utility 2 | . . 2 Weapon 2 | . 2 . Tool/Special . | . . . Average Slot Usage (%) 92 | . 98 85 Engine 13 | . 13 12 Treads 15 | . 28 2 Wheel 11 | . . 23 Storage 8 | . 14 1 Processor 7 | . 12 1 Protection 5 | . . 11 Energy Cannon 3 | . 5 . Ballistic Gun 16 | . 10 22 Ballistic Cannon 7 | . 8 5 Launcher 3 | . 2 4 Peak Build Rating 26 | 6 11 26 Average Rating 11 | 4 8 16 On Entrance 5 | . 6 10 Avg Prop Armor Cover (%) . | . . . Naked Turns . | . . . Heaviest Build 30 | 10 21 30 Greatest Support 40 | 40 40 40 Greatest Overweight (x) 1 | . . 1 Average Overweight (x) . | . . . Largest Inventory Capacity 10 | 8 10 10 Average Capacity 7 | 6 9 5 Most Carried 10 | 4 10 10 Average Carried 7 | 2 9 5 Final Capacity 10 | 8 10 5 Final Carried 10 | 4 10 5 Class Distribution -------------------- 65% | Mutant 19% | Subdweller-Mutant 14% | Gunner Dominant Class ---------------- Mutant | -10/Materials Subdweller-Mutant | -10/Subcaves Resources | -11 -10 -10 ----------- Run | Yrd Mat Sub Matter Collected 1083 | 196 461 426 Remotely . | . . . Salvage Created 1145 | . 832 313 Parts 72 | . 55 17 Haulers Intercepted 1 | . 1 . Recyclers Shooed 2 | . 2 . Parts Field Recycled . | . . . Retrieved Matter . | . . . Parts Self-Destructed 6 | . . 6 Prevented . | . . . Parts Restored . | . . . Kills | -11 -10 -10 ------- Run | Yrd Mat Sub Combat Hostiles Destroyed 34 | . 23 11 Guns 8 | . 3 5 Cannons 11 | . 8 3 AOE 15 | . 12 3 Classes Destroyed 10 | . 9 1 Worker 1 | . 1 . Builder 3 | . 3 . Hauler 1 | . 1 . Recycler 3 | . 3 . Mechanic 1 | . 1 . Operator 2 | . 2 . Watcher 2 | . 2 . Swarmer 14 | . 12 2 Grunt 11 | . 11 . Subdweller 9 | . . 9 Best Kill Streak 8 | . 8 3 Combat Bots Only 5 | . 5 3 Max Kills in Single Turn 4 | . 4 2 Gunslinging . | . . . Exploded 2 | . 2 2 Melee . | . . . Uniques/NPCs Destroyed . | . . . Combat | -11 -10 -10 -------- Run | Yrd Mat Sub Hostile Shots Fired 116 | . 76 40 Missed 23 | . 18 5 Hits 93 | . 58 35 Projectile 93 | . 58 35 Damage Taken 1344 | . 660 684 Core 267 | . 153 114 Absorbed by Shields . | . . . Core Remaining (%) 100 | 100 . . Volleys Fired 93 | . 61 32 Largest 4 | . 2 4 Hottest 106 | . 80 106 Shots Fired 195 | . 122 73 Gun 91 | . 49 42 Cannon 89 | . 63 26 Launcher 15 | . 10 5 Special . | . . . Kinetic 142 | . 74 68 Thermal 37 | . 37 . Explosive 15 | . 10 5 Electromagnetic 1 | . 1 . Robot Hit Streak 15 | . 15 8 Robot Miss Streak 5 | . 5 3 Penetration Max . | . . . Secondary Targets 1 | . . 1 Max Gunslinging Chain 1 | . . 1 Shots Hit Robots 113 | . 69 44 Core Hits 70 | . 49 21 Critical Kills . | . . . Critical Parts Destroyed . | . . . Critical Strikes 3 | . 1 2 Blast 3 | . 1 2 Melee Attacks . | . . . Impact . | . . . Slashing . | . . . Piercing . | . . . Sneak Attacks . | . . . Combat Hostiles . | . . . Follow-up Attacks . | . . . Damage Inflicted 3082 | . 2009 1073 Guns 644 | . 180 464 Cannons 1127 | . 775 352 Explosions 1311 | . 1054 257 Melee . | . . . Ramming . | . . . Kinetic 1344 | . 528 816 Thermal 544 | . 544 . Explosive 1194 | . 937 257 Electromagnetic . | . . . Impact . | . . . Slashing . | . . . Piercing . | . . . Highest Corruption . | . . . Average Corruption . | . . . Corruption Purged . | . . . Corruption Blocked . | . . . Overload Shots . | . . . Overflow Damage 115 | . 102 13 Projectiles 15 | . 15 . Explosions 100 | . 87 13 Melee . | . . . Knockbacks 11 | . 8 3 Impact . | . . . Kinetic 11 | . 8 3 Secondary . | . . . Self-Inflicted Damage 177 | . 162 15 Shots 5 | . 4 1 Rammed . | . . . Targets Rammed . | . . . Kicked . | . . . Crushed . | . . . Highest Temperature 180 | . 180 . Average Temperature 52 | . 52 . Received Heat Transfer 132 | . 84 48 Siege Activations . | . . . Martial Activations . | . . . Shielding Activations . | . . . Robots Disrupted . | . . . Combat Hostiles . | . . . Robots Corrupted . | . . . Combat Hostiles . | . . . Parts Fried . | . . . Impact Corruptions . | . . . Robots Melted . | . . . Combat Hostiles . | . . . Parts Melted 1 | . 1 . Heat Transferred 988 | . 988 . Parts Sabotaged . | . . . Parts Stolen . | . . . Parts Stripped . | . . . Power Chain Reactions . | . . . Alert | -11 -10 -10 ------- Run | Yrd Mat Sub Maximum Alert Level 2 | . 2 . Low Security (%) 49 | 100 46 . Level 1 14 | . 15 . Level 2 36 | . 38 . Level 3 . | . . . Level 4 . | . . . Level 5 . | . . . High Security . | . . . Max Security . | . . . Peak Influence 545 | . 545 . Initial . | . . . Average 244 | . 259 . Influence Increases 929 | . 879 50 Destroy 0b10 Robot/C 500 | . 460 40 Destroy 0b10 Robot/NC 65 | . 65 . Destroy Leader 106 | . 96 10 Successful Hack 18 | . 18 . Select Force Hacks 60 | . 60 . Disable Machine 105 | . 105 . Destroy Structure 60 | . 60 . Lose Combat Pursuer 15 | . 15 . Influence Decreases 929 | . 388 541 Entered New Map 236 | . . 236 Time Decay 664 | . 378 286 Lost Part 29 | . 10 19 Squads Dispatched 5 | . 5 . Investigation 4 | . 4 . Extermination . | . . . Reinforcement 1 | . 1 . Assault . | . . . Garrison . | . . . Intercept . | . . . Searches Triggered . | . . . Construction Impeded . | . . . Haulers Reinforced . | . . . Active Scanning Responses . | . . . Cargo Convoy Interrupts . | . . . Stealth | -11 -10 -10 --------- Run | Yrd Mat Sub Distress Signals . | . . . Communications Jammed . | . . . Distress Signals . | . . . Times Spotted 44 | . 30 14 Peak Tracking Total 5 | . 5 3 Tactical Retreats 1 | . 1 . Traps | -11 -10 -10 ------- Run | Yrd Mat Sub Traps Triggered 2 | . 2 . Indirectly . | . . . Trap Hack Attempts . | . . . Triggered . | . . . Disarmed . | . . . Reprogrammed . | . . . Reused . | . . . Traps Extracted . | . . . Installed . | . . . Triggered . | . . . Machines | -11 -10 -10 ---------- Run | Yrd Mat Sub Machines Disabled 9 | . 7 2 Max in Single Turn 4 | . 4 2 Machines Repaired . | . . . Machines Dismantled . | . . . Machines Sabotaged . | . . . Overloaded Fab Kills . | . . . Hacking | -11 -10 -10 --------- Run | Yrd Mat Sub Machines Accessed 8 | . 7 1 Terminals 5 | . 5 . Fabricators . | . . . Repair Stations . | . . . Recycling Units 2 | . 2 . Scanalyzers . | . . . Garrison Access . | . . . Total Hacks 21 | . 19 2 Successful 12 | . 10 2 Failed 9 | . 9 . Catastrophic . | . . . Database Lockouts . | . . . Manual 17 | . 17 . Terminals 14 | . 14 . Fabricators . | . . . Repair Stations . | . . . Recycling Units 5 | . 5 . Scanalyzers . | . . . Garrison Access . | . . . Terminal Hacks 4 | . 2 2 Record 1 | . . 1 Robot Analysis 2 | . 2 . Proto ID Catalog 1 | . . 1 Fabricator Hacks . | . . . Repair Station Hacks . | . . . Recycling Unit Hacks . | . . . Scanalyzer . | . . . Garrison Access Hacks . | . . . Unauthorized Hacks 6 | . 6 . Terminals 4 | . 4 . Botnet 4 | . 4 . Fabricators . | . . . Repair Stations . | . . . Recycling Units 2 | . 2 . Tunnel 2 | . 2 . Scanalyzers . | . . . Garrison Access . | . . . Data Cores Recovered 1 | . 1 . Used . | . . . Hacking Detections 6 | . 6 . Full Trace Events . | . . . Feedback Events . | . . . Feedback Blocked . | . . . Robot Schematics Acquired . | . . . Robots Built . | . . . Authchips . | . . . Time . | . . . Total Robot Build Rating . | . . . Part Schematics Acquired . | . . . Parts Built . | . . . Authchips . | . . . Time . | . . . Total Part Build Rating . | . . . Part Studies Acquired . | . . . Parts Repaired . | . . . Time . | . . . Parts Recycled . | . . . Recycled Matter . | . . . Retrieved Matter . | . . . Retrieved Components . | . . . Parts Scanalyzed . | . . . Part Schematics Acquired . | . . . Parts Damaged . | . . . Bothacking | -11 -10 -10 ------------ Run | Yrd Mat Sub Used RIF Installer . | . . . Robots Hacked . | . . . Non-combat . | . . . Combat . | . . . Robot Hacks Applied . | . . . Relay Couplers Released . | . . . Fabnet Peak Effective % . | . . . Robots Rewired . | . . . Allies Hacked . | . . . Hacks Repelled . | . . . Allies | -11 -10 -10 -------- Run | Yrd Mat Sub Total Allies . | . . . Largest Group . | . . . Highest-Rated Group . | . . . Highest-Rated Ally . | . . . Total Orders . | . . . Ally Attacks . | . . . Total Damage . | . . . Kills . | . . . Allies Corrupted . | . . . Allies Melted . | . . . Intel | -11 -10 -10 ------- Run | Yrd Mat Sub Active Infowar (turns) . | . . . Robot Analysis Total 2 | . 2 . Derelict Logs Recovered . | . . . Drone Launches . | . . . Drone Recoveries . | . . . Exploration | -11 -10 -10 ------------- Run | Yrd Mat Sub Turns Passed 2630 | 82 1328 1220 Spaces Moved 1731 | 45 674 1012 Core 2 | 2 . . Treads 763 | 43 674 46 Legs . | . . . Wheels 966 | . . 966 Hover . | . . . Flight . | . . . Fastest Speed 50 | 50 160 90 Average Speed 124 | 155 160 100 Slowest Speed 240 | 160 160 240 Overloaded Moves . | . . . Propulsion Burnouts . | . . . Robots Hopped . | . . . Potential Cave-ins . | . . . Cave-ins Triggered . | . . . Exploration Rate (%) 46 | 3 88 49 Regions Visited 2 Branch Regions 1 Pre-discovered Areas 2 | . 2 . Known Exits Taken . | . . . Unknown Exits Taken 2 | 1 1 . Scrap Searched 2 | . . 2 Spaces Dug . | . . . Terrain Destroyed 104 | . 63 41 Melee . | . . . Projectile 2 | . 2 . AOE 102 | . 61 41 Terrain Rammed . | . . . Walls Destroyed . | . . . Machines Disabled . | . . . Actions | -11 -10 -10 --------- Run | Yrd Mat Sub Total 2024 | 55 811 1158 Wait 107 | . 42 65 Move 1729 | 44 673 1012 Hop . | . . . Pick Up 20 | 5 11 4 Fast Attach 11 | 5 2 4 Attach 6 | 1 1 4 Detach 2 | . . 2 Swap 23 | . 12 11 Drop 25 | . 9 16 Fire 93 | . 61 32 Melee . | . . . Ram . | . . . Kick . | . . . Crush . | . . . Escape Stasis . | . . . Rewire 4 | . . 4 Trap . | . . . Miscellaneous 4 | . . 4 Route ------- -11/Scrapyard -10/Materials (discovered 4 exits: [*Mat x3] / *Sub) -10/Subcaves History --------- Turn | Location | Event 29 | -11/Scrapyard | Discovered new exit (range 15) 83 | -11/Scrapyard | Entered Materials 325 | -10/Materials | Build established: Mutant 594 | -10/Materials | Discovered new exit (range 16) 787 | -10/Materials | Discovered new exit (range 9) 955 | -10/Materials | Discovered new exit (range 16) 960 | -10/Materials | Core integrity fell below 50% 1197 | -10/Materials | Discovered new exit (range 7) 1411 | -10/Materials | Entered Subcaves 1962 | -10/Subcaves | Build established: Subdweller-Mutant 2123 | -10/Subcaves | Visited 4L-MR0's lab 2190 | -10/Subcaves | Found Gun Armor 2191 | -10/Subcaves | Attached Gun Armor, gained temporary slots: Weapon x2 2501 | -10/Subcaves | A Subdweller sparked back to life 2501 | -10/Subcaves | A Subdweller sparked back to life 2537 | -10/Subcaves | Core integrity fell below 20% 2540 | -10/Subcaves | Build established: Gunner 2559 | -10/Subcaves | Found Flightbrick 2631 | -10/Subcaves | Destroyed by IS-F4L(R) with Subdweller Machine Gun Last Messages --------------- 02475_ TX-TO3(u) deconstructs Twisted Machinery. 02501_ QM-MM0(R) creaks and sparks as it begins to move. 02501_ XI-3O7(R) creaks and sparks as it begins to move. 02510_ Acquired 10 matter. 02520_ S0-HDD(u) tweaks Twisted Machinery. 02541_ 6V-IVK(R) destroyed. 02541_ Switching to secondary target: XI-3O7(R). 02544_ XI-3O7(R) destroyed. 02545_ Acquired 32 matter. 02546_ S0-HDD(u) tweaks Twisted Machinery. 02555_ Dropped Sub. Monowheel. 02556_ Dropped Sub. Power Source. 02556_ Dropped Imp. Light Cannon. 02558_ Dropped Grenade Launcher. 02559_ Acquired Flightbrick. 02561_ QM-MM0(R) destroyed. 02562_ The unstable cave ceiling collapses. 02567_ Acquired 18 matter. 02568_ The unstable cave ceiling collapses. 02594_ Acquired 20 matter. Map ----- +----------------------------------------------------+ | ????##""#### ## #### ##??#### | | ????#%&##??#######??## #### #?# | | ????##&%#??# ##??# ### # | | ?????#*##??# ##?### ### | | ?????#&###?#### #??## ! ##?? | | ????## #????## #### ########??? | | #???# !! #????## ## ## ##?????????? | | #??## =*##???## ## #####??????????? | | #### ]####### ##??????????????? | | [% ### ###???????????????? | | &&& # ### ##?????????????????? | | ## ####?## #??????????????????? | | #########??###" #??????????????????? | | #??# ####### ## #??????????????????? | | ### ## "#######??????????????????? | | ## # %& "#######??????????????????? | | #### % "## ##?????????????????? | | ##??## "### #?????????????????? | | # ##???## "#?# #?????????????????? | | ## ###### """"#?# #?????????????????? | | ?# ## #; ####### ##?????????????????? | | ?## ### ##?## ##??????????????????? | | ??##### ### ### #???????????????????? | | ??????## #???????????????????? | | ???????# ## ##???????????????????? | | ???????# ### ### ##@ #????????????????????? | | ???????# #?# ##?#### #????????????????????? | | ???????## #?## ##????# R ?????????????????? | | ????????## #??####???? R ?????????????? | | ?????????###???????? # #"" #?????????? | | ?????????????????? # #?" #????????? | | ???????????????? """????????????????? | | ?????????????? ## """""???????????????? | | ????????????? ??#### # ## ???????????????? | | ?????????????????????# #####??????????????????? | | ?????????????????????## #???????????????????????? | | ??????????????????????# ????????????????????????? | | ??????????????????????# ????????????????????????? | | ??????????????????????# ????????????????????????? | | ??????????????????????# ????????????????????????? | | ?????????????????????? ????????????????????????? | | ?????????????????????????????????????????????????? | | ?????????????????????????????????????????????????? | | ?????????????????????????????????????????????????? | | ?????????????????????????????????????????????????? | | ?????????????????????????????????????????????????? | | ?????????????????????????????????????????????????? | | ?????????????????????????????????????????????????? | | ?????????????????????????????????????????????????? | | ?????????????????????????????????????????????????? | +----------------------------------------------------+ Best States ------------- Heat Dissipation 25 Energy Generation 15 Energy Capacity 250 Matter Stores 300 Matter Capacity 300 Sight Range 16 Terrain Scan Density 10 Armor Coverage 800 Evasion (%) 42 Targeting Accuracy 5 Recoil Reduction 2 Item Schematics ----------------- None Robot Schematics ------------------ None Fabricated ------------ Nothing Repaired ---------- Nothing Studied --------- None Alien Tech Used ----------------- None Achievements -------------- Do Not Disturb Ghost 'Em Mistaken Identity Survival Of The Most Covered Challenges ------------ None Game ------ Seed ThrowingTerrorChip Manual? 0 Play Time 00:23:49 Cumulative 126.3 hours Start 2026.01.23 @ 16:17:03 End 2026.01.23 @ 16:44:10 Sessions 1 Manual Loads 0 Difficulty Rogue Special Mode None Game No. 165 Rogue 160 Adventurer 5 Explorer 0 Win Type - Total 3 Types 2/0/0/1/0/0/0/0/0/0 Lore% 43 Gallery% 57 Achievement% 41 Wizard Run 0 Options --------- Layout 0 ASCII 0 Keyboard 1 Movement Vi Keybinds 0 Fullscreen 1 Font 24/Smallcaps Map View 76x50 Zoom Use 5% Tactical HUD 1 Map Filters NONE Filters NONE Steam 1 RUN: f0bc5b4a-0974-4b48-8f27-ed5cbe8f1443